Workbook

Sheet Leaf Plot
C1: The leaf plot
C2: What it is for: The leaf plot is designed to help you interpret the impact of a positive or negative test result, or the presence or absence of a clinical finding, by seeing how that alters the chance that a patient has a particular diagnosis. It is an aid to interpretting the impact of that result, according to the sensitivity and specificity of the particular additional test or sign.
C3: How to plot it: Simply enter the sensitivity and specificity values of the test or sign into the boxes below:
T4: Sensitivity = | U4: 0.97
T6: Specificity = | U6: 0.65
A9: Sensitivity | B9: False-positive rate | C9: Specificity | D9: False-negataive rate | E9: Prevalence (prev) | F9: Proportion of True Positives at that prev | G9: Proportion of False Positives at that prev | H9: Proportion of True Negatives at that prev | I9: Proportion of False Negatives at that prev | J9: PPV = TP/(TP+FP) at that prev | K9: NPV = TN/(TN+FN) at that prev | L9: 1-NPV at that prev | N9: Prev | O9: POS test | P9: NEG test | Q9: Diagonal | V9: How to interpret it: 1) Estimate the a-priori risk. The diagonal dotted line shows your starting estimate of the chances of the patient having a particular diagnosis, based upon all the information available before doing the test, such as age, sex, past medical history, lifestyle and other specific risk factors, and that is where you should look for the impact of the test result (for example, if you are doing a screening test on somebody without any special risk of the condition, it will be the same as the prevalence of the condition in the normal population, but it will be much higher when your history and examination leads you to suspect a particular diagnosis in most patients you are considering). 2) See how the test will alter that risk. If the test is positive (or the sign is present), the probability of the diagnosis being true will increase vertically to the level indicated by the red line. If the test is negative (or the sign is absent), the probability will fall vertically to the level of the blue line.
A10: =U4 -> 0.97 | B10: =1-C10 -> 0.35 | C10: =U6 -> 0.65 | D10: =1-A10 -> 0.03 | E10: 0.001 | F10: =A10*E10 -> 0.00097 | G10: =B10*(1-E10) -> 0.34965 | H10: =C10*(1-E10) -> 0.64935 | I10: =D10*E10 -> 3e-05 | J10: =F10/(F10+G10) -> 0.002766527865 | K10: =H10/(H10+I10) -> 0.9999538021 | L10: =1-K10 -> 4.619791185e-05 | N10: =E10 -> 0.001 | O10: =J10 -> 0.002766527865 | P10: =L10 -> 4.619791185e-05 | Q10: =E10 -> 0.001
A11: =A10 -> 0.97 | B11: =1-C11 -> 0.35 | C11: =C10 -> 0.65 | D11: =1-A11 -> 0.03 | E11: 0.0015 | F11: =A11*E11 -> 0.001455 | G11: =B11*(1-E11) -> 0.349475 | H11: =C11*(1-E11) -> 0.649025 | I11: =D11*E11 -> 4.5e-05 | J11: =F11/(F11+G11) -> 0.004146126008 | K11: =H11/(H11+I11) -> 0.99993067 | L11: =1-K11 -> 6.932996441e-05 | N11: =E11 -> 0.0015 | O11: =J11 -> 0.004146126008 | P11: =L11 -> 6.932996441e-05 | Q11: =E11 -> 0.0015
A12: =A11 -> 0.97 | B12: =1-C12 -> 0.35 | C12: =C11 -> 0.65 | D12: =1-A12 -> 0.03 | E12: 0.002 | F12: =A12*E12 -> 0.00194 | G12: =B12*(1-E12) -> 0.3493 | H12: =C12*(1-E12) -> 0.6487 | I12: =D12*E12 -> 6e-05 | J12: =F12/(F12+G12) -> 0.005523288919 | K12: =H12/(H12+I12) -> 0.9999075159 | L12: 9.248412356e-05 | N12: 0.002 | O12: 0.005523288919 | P12: 9.248412356e-05 | Q12: 0.002
A13: 0.97 | B13: 0.35 | C13: 0.65 | D13: 0.03 | E13: 0.0025 | F13: =A13*E13 -> 0.002425 | G13: =B13*(1-E13) -> 0.349125 | H13: =C13*(1-E13) -> 0.648375 | I13: =D13*E13 -> 7.5e-05 | J13: =F13/(F13+G13) -> 0.006898023041 | K13: =H13/(H13+I13) -> 0.9998843396 | L13: 0.000115660421 | N13: 0.0025 | O13: 0.006898023041 | P13: 0.000115660421 | Q13: 0.0025
A14: 0.97 | B14: 0.35 | C14: 0.65 | D14: 0.03 | E14: 0.003 | F14: 0.00291 | G14: 0.34895 | H14: 0.64805 | I14: 9e-05 | J14: 0.008270334792 | K14: 0.9998611411 | L14: 0.0001388588885 | N14: 0.003 | O14: 0.008270334792 | P14: 0.0001388588885 | Q14: 0.003
A15: 0.97 | B15: 0.35 | C15: 0.65 | D15: 0.03 | E15: 0.0035 | F15: 0.003395 | G15: 0.348775 | H15: 0.647725 | I15: 0.000105 | J15: 0.00964023057 | K15: 0.9998379204 | L15: 0.0001620795579 | N15: 0.0035 | O15: 0.00964023057 | P15: 0.0001620795579 | Q15: 0.0035
A16: 0.97 | B16: 0.35 | C16: 0.65 | D16: 0.03 | E16: 0.004 | F16: 0.00388 | G16: 0.3486 | H16: 0.6474 | I16: 0.00012 | J16: 0.01100771675 | K16: 0.9998146775 | L16: 0.0001853224611 | N16: 0.004 | O16: 0.01100771675 | P16: 0.0001853224611 | Q16: 0.004
A17: 0.97 | B17: 0.35 | C17: 0.65 | D17: 0.03 | E17: 0.0045 | F17: 0.004365 | G17: 0.348425 | H17: 0.647075 | I17: 0.000135 | J17: 0.01237279968 | K17: 0.9997914124 | L17: 0.00020858763 | N17: 0.0045 | O17: 0.01237279968 | P17: 0.00020858763 | Q17: 0.0045
A18: 0.97 | B18: 0.35 | C18: 0.65 | D18: 0.03 | E18: 0.005 | F18: 0.00485 | G18: 0.34825 | H18: 0.64675 | I18: 0.00015 | J18: 0.0137354857 | K18: 0.9997681249 | L18: 0.0002318750966 | N18: 0.005 | O18: 0.0137354857 | P18: 0.0002318750966 | Q18: 0.005
A19: 0.97 | B19: 0.35 | C19: 0.65 | D19: 0.03 | E19: 0.0055 | F19: 0.005335 | G19: 0.348075 | H19: 0.646425 | I19: 0.000165 | J19: 0.0150957811 | K19: 0.9997448151 | L19: 0.0002551848931 | N19: 0.0055 | O19: 0.0150957811 | P19: 0.0002551848931 | Q19: 0.0055
A20: 0.97 | B20: 0.35 | C20: 0.65 | D20: 0.03 | E20: 0.006 | F20: 0.00582 | G20: 0.3479 | H20: 0.6461 | I20: 0.00018 | J20: 0.01645369219 | K20: 0.9997214829 | L20: 0.0002785170514 | N20: 0.006 | O20: 0.01645369219 | P20: 0.0002785170514 | Q20: 0.006
A21: 0.97 | B21: 0.35 | C21: 0.65 | D21: 0.03 | E21: 0.0065 | F21: 0.006305 | G21: 0.347725 | H21: 0.645775 | I21: 0.000195 | J21: 0.01780922521 | K21: 0.9996981284 | L21: 0.0003018716039 | N21: 0.0065 | O21: 0.01780922521 | P21: 0.0003018716039 | Q21: 0.0065
A22: 0.97 | B22: 0.35 | C22: 0.65 | D22: 0.03 | E22: 0.007 | F22: 0.00679 | G22: 0.34755 | H22: 0.64545 | I22: 0.00021 | J22: 0.01916238641 | K22: 0.9996747514 | L22: 0.0003252485828 | N22: 0.007 | O22: 0.01916238641 | P22: 0.0003252485828 | Q22: 0.007
A23: 0.97 | B23: 0.35 | C23: 0.65 | D23: 0.03 | E23: 0.0075 | F23: 0.007275 | G23: 0.347375 | H23: 0.645125 | I23: 0.000225 | J23: 0.02051318201 | K23: 0.999651352 | L23: 0.0003486480205 | N23: 0.0075 | O23: 0.02051318201 | P23: 0.0003486480205 | Q23: 0.0075
A24: 0.97 | B24: 0.35 | C24: 0.65 | D24: 0.03 | E24: 0.008 | F24: 0.00776 | G24: 0.3472 | H24: 0.6448 | I24: 0.00024 | J24: 0.02186161821 | K24: 0.9996279301 | L24: 0.0003720699492 | N24: 0.008 | O24: 0.02186161821 | P24: 0.0003720699492 | Q24: 0.008
A25: 0.97 | B25: 0.35 | C25: 0.65 | D25: 0.03 | E25: 0.0085 | F25: 0.008245 | G25: 0.347025 | H25: 0.644475 | I25: 0.000255 | J25: 0.02320770119 | K25: 0.9996044856 | L25: 0.0003955144014 | N25: 0.0085 | O25: 0.02320770119 | P25: 0.0003955144014 | Q25: 0.0085
A26: 0.97 | B26: 0.35 | C26: 0.65 | D26: 0.03 | E26: 0.009 | F26: 0.00873 | G26: 0.34685 | H26: 0.64415 | I26: 0.00027 | J26: 0.02455143709 | K26: 0.9995810186 | L26: 0.0004189814096 | N26: 0.009 | O26: 0.02455143709 | P26: 0.0004189814096 | Q26: 0.009
A27: 0.97 | B27: 0.35 | C27: 0.65 | D27: 0.03 | E27: 0.0095 | F27: 0.009215 | G27: 0.346675 | H27: 0.643825 | I27: 0.000285 | J27: 0.02589283205 | K27: 0.999557529 | L27: 0.0004424710065 | N27: 0.0095 | O27: 0.02589283205 | P27: 0.0004424710065 | Q27: 0.0095
A28: 0.97 | B28: 0.35 | C28: 0.65 | D28: 0.03 | E28: 0.01 | F28: 0.0097 | G28: 0.3465 | H28: 0.6435 | I28: 0.0003 | J28: 0.0272318922 | K28: 0.9995340168 | L28: 0.0004659832246 | N28: 0.01 | O28: 0.0272318922 | P28: 0.0004659832246 | Q28: 0.01
A29: 0.97 | B29: 0.35 | C29: 0.65 | D29: 0.03 | E29: 0.015 | F29: 0.01455 | G29: 0.34475 | H29: 0.64025 | I29: 0.00045 | J29: 0.04049540774 | K29: 0.9992976432 | L29: 0.0007023567973 | N29: 0.015 | O29: 0.04049540774 | P29: 0.0007023567973 | Q29: 0.015
A30: 0.97 | B30: 0.35 | C30: 0.65 | D30: 0.03 | E30: 0.02 | F30: 0.0194 | G30: 0.343 | H30: 0.637 | I30: 0.0006 | J30: 0.05353200883 | K30: 0.9990589711 | L30: 0.0009410288582 | N30: 0.02 | O30: 0.05353200883 | P30: 0.0009410288582 | Q30: 0.02
A31: 0.97 | B31: 0.35 | C31: 0.65 | D31: 0.03 | E31: 0.025 | F31: 0.02425 | G31: 0.34125 | H31: 0.63375 | I31: 0.00075 | J31: 0.06634746922 | K31: 0.9988179669 | L31: 0.001182033097 | N31: 0.025 | O31: 0.06634746922 | P31: 0.001182033097 | Q31: 0.025
A32: 0.97 | B32: 0.35 | C32: 0.65 | D32: 0.03 | E32: 0.03 | F32: 0.0291 | G32: 0.3395 | H32: 0.6305 | I32: 0.0009 | J32: 0.07894736842 | K32: 0.9985745961 | L32: 0.001425403864 | N32: 0.03 | O32: 0.07894736842 | P32: 0.001425403864 | Q32: 0.03
A33: 0.97 | B33: 0.35 | C33: 0.65 | D33: 0.03 | E33: 0.035 | F33: 0.03395 | G33: 0.33775 | H33: 0.62725 | I33: 0.00105 | J33: 0.09133709981 | K33: 0.9983288238 | L33: 0.00167117619 | N33: 0.035 | O33: 0.09133709981 | P33: 0.00167117619 | Q33: 0.035
A34: 0.97 | B34: 0.35 | C34: 0.65 | D34: 0.03 | E34: 0.04 | F34: 0.0388 | G34: 0.336 | H34: 0.624 | I34: 0.0012 | J34: 0.1035218783 | K34: 0.9980806142 | L34: 0.001919385797 | N34: 0.04 | O34: 0.1035218783 | P34: 0.001919385797 | Q34: 0.04
A35: 0.97 | B35: 0.35 | C35: 0.65 | D35: 0.03 | E35: 0.045 | F35: 0.04365 | G35: 0.33425 | H35: 0.62075 | I35: 0.00135 | J35: 0.1155067478 | K35: 0.9978299309 | L35: 0.002170069121 | N35: 0.045 | O35: 0.1155067478 | P35: 0.002170069121 | Q35: 0.045
A36: 0.97 | B36: 0.35 | C36: 0.65 | D36: 0.03 | E36: 0.05 | F36: 0.0485 | G36: 0.3325 | H36: 0.6175 | I36: 0.0015 | J36: 0.1272965879 | K36: 0.9975767367 | L36: 0.002423263328 | N36: 0.05 | O36: 0.1272965879 | P36: 0.002423263328 | Q36: 0.05
A37: 0.97 | B37: 0.35 | C37: 0.65 | D37: 0.03 | E37: 0.055 | F37: 0.05335 | G37: 0.33075 | H37: 0.61425 | I37: 0.00165 | J37: 0.1388961208 | K37: 0.9973209937 | L37: 0.002679006332 | N37: 0.055 | O37: 0.1388961208 | P37: 0.002679006332 | Q37: 0.055
A38: 0.97 | B38: 0.35 | C38: 0.65 | D38: 0.03 | E38: 0.06 | F38: 0.0582 | G38: 0.329 | H38: 0.611 | I38: 0.0018 | J38: 0.1503099174 | K38: 0.9970626632 | L38: 0.002937336815 | N38: 0.06 | O38: 0.1503099174 | P38: 0.002937336815 | Q38: 0.06
A39: 0.97 | B39: 0.35 | C39: 0.65 | D39: 0.03 | E39: 0.065 | F39: 0.06305 | G39: 0.32725 | H39: 0.60775 | I39: 0.00195 | J39: 0.1615424033 | K39: 0.9968017058 | L39: 0.003198294243 | N39: 0.065 | O39: 0.1615424033 | P39: 0.003198294243 | Q39: 0.065
A40: 0.97 | B40: 0.35 | C40: 0.65 | D40: 0.03 | E40: 0.07 | F40: 0.0679 | G40: 0.3255 | H40: 0.6045 | I40: 0.0021 | J40: 0.1725978648 | K40: 0.9965380811 | L40: 0.003461918892 | N40: 0.07 | O40: 0.1725978648 | P40: 0.003461918892 | Q40: 0.07
A41: 0.97 | B41: 0.35 | C41: 0.65 | D41: 0.03 | E41: 0.075 | F41: 0.07275 | G41: 0.32375 | H41: 0.60125 | I41: 0.00225 | J41: 0.183480454 | K41: 0.9962717481 | L41: 0.003728251864 | N41: 0.075 | O41: 0.183480454 | P41: 0.003728251864 | Q41: 0.075
A42: 0.97 | B42: 0.35 | C42: 0.65 | D42: 0.03 | E42: 0.08 | F42: 0.0776 | G42: 0.322 | H42: 0.598 | I42: 0.0024 | J42: 0.1941941942 | K42: 0.9960026649 | L42: 0.00399733511 | N42: 0.08 | O42: 0.1941941942 | P42: 0.00399733511 | Q42: 0.08
A43: 0.97 | B43: 0.35 | C43: 0.65 | D43: 0.03 | E43: 0.085 | F43: 0.08245 | G43: 0.32025 | H43: 0.59475 | I43: 0.00255 | J43: 0.2047429849 | K43: 0.9957307885 | L43: 0.004269211452 | N43: 0.085 | O43: 0.2047429849 | P43: 0.004269211452 | Q43: 0.085
A44: 0.97 | B44: 0.35 | C44: 0.65 | D44: 0.03 | E44: 0.09 | F44: 0.0873 | G44: 0.3185 | H44: 0.5915 | I44: 0.0027 | J44: 0.2151306062 | K44: 0.9954560754 | L44: 0.004543924605 | N44: 0.09 | O44: 0.2151306062 | P44: 0.004543924605 | Q44: 0.09
A45: 0.97 | B45: 0.35 | C45: 0.65 | D45: 0.03 | E45: 0.095 | F45: 0.09215 | G45: 0.31675 | H45: 0.58825 | I45: 0.00285 | J45: 0.2253607239 | K45: 0.9951784808 | L45: 0.004821519201 | N45: 0.095 | O45: 0.2253607239 | P45: 0.004821519201 | Q45: 0.095
A46: 0.97 | B46: 0.35 | C46: 0.65 | D46: 0.03 | E46: 0.1 | F46: 0.097 | G46: 0.315 | H46: 0.585 | I46: 0.003 | J46: 0.2354368932 | K46: 0.9948979592 | L46: 0.005102040816 | N46: 0.1 | O46: 0.2354368932 | P46: 0.005102040816 | Q46: 0.1
A47: 0.97 | B47: 0.35 | C47: 0.65 | D47: 0.03 | E47: 0.11 | F47: 0.1067 | G47: 0.3115 | H47: 0.5785 | I47: 0.0033 | J47: 0.2551410808 | K47: 0.9943279477 | L47: 0.005672052252 | N47: 0.11 | O47: 0.2551410808 | P47: 0.005672052252 | Q47: 0.11
A48: 0.97 | B48: 0.35 | C48: 0.65 | D48: 0.03 | E48: 0.12 | F48: 0.1164 | G48: 0.308 | H48: 0.572 | I48: 0.0036 | J48: 0.274269557 | K48: 0.9937456567 | L48: 0.006254343294 | N48: 0.12 | O48: 0.274269557 | P48: 0.006254343294 | Q48: 0.12
A49: 0.97 | B49: 0.35 | C49: 0.65 | D49: 0.03 | E49: 0.13 | F49: 0.1261 | G49: 0.3045 | H49: 0.5655 | I49: 0.0039 | J49: 0.29284719 | K49: 0.9931506849 | L49: 0.006849315068 | N49: 0.13 | O49: 0.29284719 | P49: 0.006849315068 | Q49: 0.13
A50: 0.97 | B50: 0.35 | C50: 0.65 | D50: 0.03 | E50: 0.14 | F50: 0.1358 | G50: 0.301 | H50: 0.559 | I50: 0.0042 | J50: 0.3108974359 | K50: 0.9925426136 | L50: 0.007457386364 | N50: 0.14 | O50: 0.3108974359 | P50: 0.007457386364 | Q50: 0.14
A51: 0.97 | B51: 0.35 | C51: 0.65 | D51: 0.03 | E51: 0.15 | F51: 0.1455 | G51: 0.2975 | H51: 0.5525 | I51: 0.0045 | J51: 0.3284424379 | K51: 0.9919210054 | L51: 0.008078994614 | N51: 0.15 | O51: 0.3284424379 | P51: 0.008078994614 | Q51: 0.15
A52: 0.97 | B52: 0.35 | C52: 0.65 | D52: 0.03 | E52: 0.16 | F52: 0.1552 | G52: 0.294 | H52: 0.546 | I52: 0.0048 | J52: 0.3455031167 | K52: 0.9912854031 | L52: 0.00871459695 | N52: 0.16 | O52: 0.3455031167 | P52: 0.00871459695 | Q52: 0.16
A53: 0.97 | B53: 0.35 | C53: 0.65 | D53: 0.03 | E53: 0.17 | F53: 0.1649 | G53: 0.2905 | H53: 0.5395 | I53: 0.0051 | J53: 0.3620992534 | K53: 0.9906353287 | L53: 0.009364671318 | N53: 0.17 | O53: 0.3620992534 | P53: 0.009364671318 | Q53: 0.17
A54: 0.97 | B54: 0.35 | C54: 0.65 | D54: 0.03 | E54: 0.18 | F54: 0.1746 | G54: 0.287 | H54: 0.533 | I54: 0.0054 | J54: 0.3782495667 | K54: 0.9899702823 | L54: 0.01002971768 | N54: 0.18 | O54: 0.3782495667 | P54: 0.01002971768 | Q54: 0.18
A55: 0.97 | B55: 0.35 | C55: 0.65 | D55: 0.03 | E55: 0.19 | F55: 0.1843 | G55: 0.2835 | H55: 0.5265 | I55: 0.0057 | J55: 0.3939717828 | K55: 0.9892897407 | L55: 0.0107102593 | N55: 0.19 | O55: 0.3939717828 | P55: 0.0107102593 | Q55: 0.19
A56: 0.97 | B56: 0.35 | C56: 0.65 | D56: 0.03 | E56: 0.2 | F56: 0.194 | G56: 0.28 | H56: 0.52 | I56: 0.006 | J56: 0.4092827004 | K56: 0.9885931559 | L56: 0.01140684411 | N56: 0.2 | O56: 0.4092827004 | P56: 0.01140684411 | Q56: 0.2
A57: 0.97 | B57: 0.35 | C57: 0.65 | D57: 0.03 | E57: 0.21 | F57: 0.2037 | G57: 0.2765 | H57: 0.5135 | I57: 0.0063 | J57: 0.4241982507 | K57: 0.9878799538 | L57: 0.01212004617 | N57: 0.21 | O57: 0.4241982507 | P57: 0.01212004617 | Q57: 0.21
A58: 0.97 | B58: 0.35 | C58: 0.65 | D58: 0.03 | E58: 0.22 | F58: 0.2134 | G58: 0.273 | H58: 0.507 | I58: 0.0066 | J58: 0.4387335526 | K58: 0.9871495327 | L58: 0.01285046729 | N58: 0.22 | O58: 0.4387335526 | P58: 0.01285046729 | Q58: 0.22
A59: 0.97 | B59: 0.35 | C59: 0.65 | D59: 0.03 | E59: 0.23 | F59: 0.2231 | G59: 0.2695 | H59: 0.5005 | I59: 0.0069 | J59: 0.4529029639 | K59: 0.9864012613 | L59: 0.01359873867 | N59: 0.23 | O59: 0.4529029639 | P59: 0.01359873867 | Q59: 0.23
A60: 0.97 | B60: 0.35 | C60: 0.65 | D60: 0.03 | E60: 0.24 | F60: 0.2328 | G60: 0.266 | H60: 0.494 | I60: 0.0072 | J60: 0.4667201283 | K60: 0.9856344773 | L60: 0.01436552275 | N60: 0.24 | O60: 0.4667201283 | P60: 0.01436552275 | Q60: 0.24
A61: 0.97 | B61: 0.35 | C61: 0.65 | D61: 0.03 | E61: 0.25 | F61: 0.2425 | G61: 0.2625 | H61: 0.4875 | I61: 0.0075 | J61: 0.4801980198 | K61: 0.9848484848 | L61: 0.01515151515 | N61: 0.25 | O61: 0.4801980198 | P61: 0.01515151515 | Q61: 0.25
A62: 0.97 | B62: 0.35 | C62: 0.65 | D62: 0.03 | E62: 0.26 | F62: 0.2522 | G62: 0.259 | H62: 0.481 | I62: 0.0078 | J62: 0.4933489828 | K62: 0.9840425532 | L62: 0.01595744681 | N62: 0.26 | O62: 0.4933489828 | P62: 0.01595744681 | Q62: 0.26
A63: 0.97 | B63: 0.35 | C63: 0.65 | D63: 0.03 | E63: 0.27 | F63: 0.2619 | G63: 0.2555 | H63: 0.4745 | I63: 0.0081 | J63: 0.50618477 | K63: 0.9832159138 | L63: 0.0167840862 | N63: 0.27 | O63: 0.50618477 | P63: 0.0167840862 | Q63: 0.27
A64: 0.97 | B64: 0.35 | C64: 0.65 | D64: 0.03 | E64: 0.28 | F64: 0.2716 | G64: 0.252 | H64: 0.468 | I64: 0.0084 | J64: 0.5187165775 | K64: 0.9823677582 | L64: 0.01763224181 | N64: 0.28 | O64: 0.5187165775 | P64: 0.01763224181 | Q64: 0.28
A65: 0.97 | B65: 0.35 | C65: 0.65 | D65: 0.03 | E65: 0.29 | F65: 0.2813 | G65: 0.2485 | H65: 0.4615 | I65: 0.0087 | J65: 0.5309550774 | K65: 0.9814972352 | L65: 0.01850276478 | N65: 0.29 | O65: 0.5309550774 | P65: 0.01850276478 | Q65: 0.29
A66: 0.97 | B66: 0.35 | C66: 0.65 | D66: 0.03 | E66: 0.3 | F66: 0.291 | G66: 0.245 | H66: 0.455 | I66: 0.009 | J66: 0.5429104478 | K66: 0.9806034483 | L66: 0.01939655172 | N66: 0.3 | O66: 0.5429104478 | P66: 0.01939655172 | Q66: 0.3
A67: 0.97 | B67: 0.35 | C67: 0.65 | D67: 0.03 | E67: 0.31 | F67: 0.3007 | G67: 0.2415 | H67: 0.4485 | I67: 0.0093 | J67: 0.5545924013 | K67: 0.9796854522 | L67: 0.02031454784 | N67: 0.31 | O67: 0.5545924013 | P67: 0.02031454784 | Q67: 0.31
A68: 0.97 | B68: 0.35 | C68: 0.65 | D68: 0.03 | E68: 0.32 | F68: 0.3104 | G68: 0.238 | H68: 0.442 | I68: 0.0096 | J68: 0.5660102115 | K68: 0.9787422498 | L68: 0.02125775022 | N68: 0.32 | O68: 0.5660102115 | P68: 0.02125775022 | Q68: 0.32
A69: 0.97 | B69: 0.35 | C69: 0.65 | D69: 0.03 | E69: 0.33 | F69: 0.3201 | G69: 0.2345 | H69: 0.4355 | I69: 0.0099 | J69: 0.5771727371 | K69: 0.9777727885 | L69: 0.0222272115 | N69: 0.33 | O69: 0.5771727371 | P69: 0.0222272115 | Q69: 0.33
A70: 0.97 | B70: 0.35 | C70: 0.65 | D70: 0.03 | E70: 0.34 | F70: 0.3298 | G70: 0.231 | H70: 0.429 | I70: 0.0102 | J70: 0.5880884451 | K70: 0.9767759563 | L70: 0.02322404372 | N70: 0.34 | O70: 0.5880884451 | P70: 0.02322404372 | Q70: 0.34
A71: 0.97 | B71: 0.35 | C71: 0.65 | D71: 0.03 | E71: 0.35 | F71: 0.3395 | G71: 0.2275 | H71: 0.4225 | I71: 0.0105 | J71: 0.5987654321 | K71: 0.9757505774 | L71: 0.02424942263 | N71: 0.35 | O71: 0.5987654321 | P71: 0.02424942263 | Q71: 0.35
A72: 0.97 | B72: 0.35 | C72: 0.65 | D72: 0.03 | E72: 0.36 | F72: 0.3492 | G72: 0.224 | H72: 0.416 | I72: 0.0108 | J72: 0.6092114445 | K72: 0.9746954077 | L72: 0.02530459231 | N72: 0.36 | O72: 0.6092114445 | P72: 0.02530459231 | Q72: 0.36
A73: 0.97 | B73: 0.35 | C73: 0.65 | D73: 0.03 | E73: 0.37 | F73: 0.3589 | G73: 0.2205 | H73: 0.4095 | I73: 0.0111 | J73: 0.6194338971 | K73: 0.9736091298 | L73: 0.02639087019 | N73: 0.37 | O73: 0.6194338971 | P73: 0.02639087019 | Q73: 0.37
A74: 0.97 | B74: 0.35 | C74: 0.65 | D74: 0.03 | E74: 0.38 | F74: 0.3686 | G74: 0.217 | H74: 0.403 | I74: 0.0114 | J74: 0.6294398907 | K74: 0.9724903475 | L74: 0.02750965251 | N74: 0.38 | O74: 0.6294398907 | P74: 0.02750965251 | Q74: 0.38
A75: 0.97 | B75: 0.35 | C75: 0.65 | D75: 0.03 | E75: 0.39 | F75: 0.3783 | G75: 0.2135 | H75: 0.3965 | I75: 0.0117 | J75: 0.6392362285 | K75: 0.9713375796 | L75: =1-K75 -> 0.02866242038 | N75: =E75 -> 0.39 | O75: =J75 -> 0.6392362285 | P75: =L75 -> 0.02866242038 | Q75: =E75 -> 0.39
A76: =A75 -> 0.97 | B76: =1-C76 -> 0.35 | C76: =C75 -> 0.65 | D76: =1-A76 -> 0.03 | E76: 0.4 | F76: 0.388 | G76: 0.21 | H76: 0.39 | I76: 0.012 | J76: 0.6488294314 | K76: 0.9701492537 | L76: 0.02985074627 | N76: 0.4 | O76: 0.6488294314 | P76: 0.02985074627 | Q76: 0.4
A77: 0.97 | B77: 0.35 | C77: 0.65 | D77: 0.03 | E77: 0.41 | F77: =A77*E77 -> 0.3977 | G77: =B77*(1-E77) -> 0.2065 | H77: =C77*(1-E77) -> 0.3835 | I77: =D77*E77 -> 0.0123 | J77: =F77/(F77+G77) -> 0.6582257531 | K77: =H77/(H77+I77) -> 0.9689236988 | L77: 0.03107630116 | N77: 0.41 | O77: 0.6582257531 | P77: 0.03107630116 | Q77: 0.41
A78: 0.97 | B78: 0.35 | C78: 0.65 | D78: 0.03 | E78: 0.42 | F78: 0.4074 | G78: 0.203 | H78: 0.377 | I78: 0.0126 | J78: 0.6674311927 | K78: 0.9676591376 | L78: 0.03234086242 | N78: 0.42 | O78: 0.6674311927 | P78: 0.03234086242 | Q78: 0.42
A79: 0.97 | B79: 0.35 | C79: 0.65 | D79: 0.03 | E79: 0.43 | F79: 0.4171 | G79: 0.1995 | H79: 0.3705 | I79: 0.0129 | J79: 0.6764515083 | K79: 0.9663536776 | L79: 0.03364632238 | N79: 0.43 | O79: 0.6764515083 | P79: 0.03364632238 | Q79: 0.43
A80: 0.97 | B80: 0.35 | C80: 0.65 | D80: 0.03 | E80: 0.44 | F80: 0.4268 | G80: 0.196 | H80: 0.364 | I80: 0.0132 | J80: 0.6852922286 | K80: 0.9650053022 | L80: 0.03499469777 | N80: 0.44 | O80: 0.6852922286 | P80: 0.03499469777 | Q80: 0.44
A81: 0.97 | B81: 0.35 | C81: 0.65 | D81: 0.03 | E81: 0.45 | F81: 0.4365 | G81: 0.1925 | H81: 0.3575 | I81: 0.0135 | J81: 0.6939586645 | K81: 0.9636118598 | L81: 0.03638814016 | N81: 0.45 | O81: 0.6939586645 | P81: 0.03638814016 | Q81: 0.45
A82: 0.97 | B82: 0.35 | C82: 0.65 | D82: 0.03 | E82: 0.46 | F82: 0.4462 | G82: 0.189 | H82: 0.351 | I82: 0.0138 | J82: 0.7024559194 | K82: 0.9621710526 | L82: 0.03782894737 | N82: 0.46 | O82: 0.7024559194 | P82: 0.03782894737 | Q82: 0.46
A83: 0.97 | B83: 0.35 | C83: 0.65 | D83: 0.03 | E83: 0.47 | F83: 0.4559 | G83: 0.1855 | H83: 0.3445 | I83: 0.0141 | J83: 0.7107888993 | K83: 0.9606804239 | L83: 0.03931957613 | N83: 0.47 | O83: 0.7107888993 | P83: 0.03931957613 | Q83: 0.47
A84: 0.97 | B84: 0.35 | C84: 0.65 | D84: 0.03 | E84: 0.48 | F84: 0.4656 | G84: 0.182 | H84: 0.338 | I84: 0.0144 | J84: 0.7189623224 | K84: 0.9591373439 | L84: 0.04086265607 | N84: 0.48 | O84: 0.7189623224 | P84: 0.04086265607 | Q84: 0.48
A85: 0.97 | B85: 0.35 | C85: 0.65 | D85: 0.03 | E85: 0.49 | F85: 0.4753 | G85: 0.1785 | H85: 0.3315 | I85: 0.0147 | J85: 0.7269807281 | K85: 0.9575389948 | L85: 0.0424610052 | N85: 0.49 | O85: 0.7269807281 | P85: 0.0424610052 | Q85: 0.49
A86: 0.97 | B86: 0.35 | C86: 0.65 | D86: 0.03 | E86: 0.5 | F86: 0.485 | G86: 0.175 | H86: 0.325 | I86: 0.015 | J86: 0.7348484848 | K86: 0.9558823529 | L86: 0.04411764706 | N86: 0.5 | O86: 0.7348484848 | P86: 0.04411764706 | Q86: 0.5
A87: 0.97 | B87: 0.35 | C87: 0.65 | D87: 0.03 | E87: 0.51 | F87: 0.4947 | G87: 0.1715 | H87: 0.3185 | I87: 0.0153 | J87: 0.7425697989 | K87: 0.9541641702 | L87: 0.04583582984 | N87: 0.51 | O87: 0.7425697989 | P87: 0.04583582984 | Q87: 0.51
A88: 0.97 | B88: 0.35 | C88: 0.65 | D88: 0.03 | E88: 0.52 | F88: 0.5044 | G88: 0.168 | H88: 0.312 | I88: 0.0156 | J88: 0.750148721 | K88: 0.9523809524 | L88: 0.04761904762 | N88: 0.52 | O88: 0.750148721 | P88: 0.04761904762 | Q88: 0.52
A89: 0.97 | B89: 0.35 | C89: 0.65 | D89: 0.03 | E89: 0.53 | F89: 0.5141 | G89: 0.1645 | H89: 0.3055 | I89: 0.0159 | J89: 0.7575891541 | K89: 0.9505289359 | L89: 0.04947106409 | N89: 0.53 | O89: 0.7575891541 | P89: 0.04947106409 | Q89: 0.53
A90: 0.97 | B90: 0.35 | C90: 0.65 | D90: 0.03 | E90: 0.54 | F90: 0.5238 | G90: 0.161 | H90: 0.299 | I90: 0.0162 | J90: 0.7648948598 | K90: 0.9486040609 | L90: 0.05139593909 | N90: 0.54 | O90: 0.7648948598 | P90: 0.05139593909 | Q90: 0.54
A91: 0.97 | B91: 0.35 | C91: 0.65 | D91: 0.03 | E91: 0.55 | F91: 0.5335 | G91: 0.1575 | H91: 0.2925 | I91: 0.0165 | J91: 0.7720694645 | K91: 0.9466019417 | L91: 0.05339805825 | N91: 0.55 | O91: 0.7720694645 | P91: 0.05339805825 | Q91: 0.55
A92: 0.97 | B92: 0.35 | C92: 0.65 | D92: 0.03 | E92: 0.56 | F92: 0.5432 | G92: 0.154 | H92: 0.286 | I92: 0.0168 | J92: 0.7791164659 | K92: 0.9445178336 | L92: 0.05548216645 | N92: 0.56 | O92: 0.7791164659 | P92: 0.05548216645 | Q92: 0.56
A93: 0.97 | B93: 0.35 | C93: 0.65 | D93: 0.03 | E93: 0.57 | F93: 0.5529 | G93: 0.1505 | H93: 0.2795 | I93: 0.0171 | J93: 0.786039238 | K93: 0.9423465947 | L93: 0.05765340526 | N93: 0.57 | O93: 0.786039238 | P93: 0.05765340526 | Q93: 0.57
A94: 0.97 | B94: 0.35 | C94: 0.65 | D94: 0.03 | E94: 0.58 | F94: 0.5626 | G94: 0.147 | H94: 0.273 | I94: 0.0174 | J94: 0.7928410372 | K94: 0.9400826446 | L94: 0.05991735537 | N94: 0.58 | O94: 0.7928410372 | P94: 0.05991735537 | Q94: 0.58
A95: 0.97 | B95: 0.35 | C95: 0.65 | D95: 0.03 | E95: 0.59 | F95: 0.5723 | G95: 0.1435 | H95: 0.2665 | I95: 0.0177 | J95: 0.799525007 | K95: 0.9377199156 | L95: 0.06228008445 | N95: 0.59 | O95: 0.799525007 | P95: 0.06228008445 | Q95: 0.59
A96: 0.97 | B96: 0.35 | C96: 0.65 | D96: 0.03 | E96: 0.6 | F96: 0.582 | G96: 0.14 | H96: 0.26 | I96: 0.018 | J96: 0.8060941828 | K96: 0.9352517986 | L96: 0.06474820144 | N96: 0.6 | O96: 0.8060941828 | P96: 0.06474820144 | Q96: 0.6
A97: 0.97 | B97: 0.35 | C97: 0.65 | D97: 0.03 | E97: 0.61 | F97: 0.5917 | G97: 0.1365 | H97: 0.2535 | I97: 0.0183 | J97: 0.8125514968 | K97: 0.9326710817 | L97: 0.06732891832 | N97: 0.61 | O97: 0.8125514968 | P97: 0.06732891832 | Q97: 0.61
A98: 0.97 | B98: 0.35 | C98: 0.65 | D98: 0.03 | E98: 0.62 | F98: 0.6014 | G98: 0.133 | H98: 0.247 | I98: 0.0186 | J98: 0.8188997821 | K98: 0.9299698795 | L98: 0.07003012048 | N98: 0.62 | O98: 0.8188997821 | P98: 0.07003012048 | Q98: 0.62
A99: 0.97 | B99: 0.35 | C99: 0.65 | D99: 0.03 | E99: 0.63 | F99: 0.6111 | G99: 0.1295 | H99: 0.2405 | I99: 0.0189 | J99: 0.8251417769 | K99: 0.9271395528 | L99: 0.07286044719 | N99: 0.63 | O99: 0.8251417769 | P99: 0.07286044719 | Q99: 0.63
A100: 0.97 | B100: 0.35 | C100: 0.65 | D100: 0.03 | E100: 0.64 | F100: 0.6208 | G100: 0.126 | H100: 0.234 | I100: 0.0192 | J100: 0.8312801285 | K100: 0.9241706161 | L100: 0.07582938389 | N100: 0.64 | O100: 0.8312801285 | P100: 0.07582938389 | Q100: 0.64
A101: 0.97 | B101: 0.35 | C101: 0.65 | D101: 0.03 | E101: 0.65 | F101: 0.6305 | G101: 0.1225 | H101: 0.2275 | I101: 0.0195 | J101: 0.8373173971 | K101: 0.9210526316 | L101: 0.07894736842 | N101: 0.65 | O101: 0.8373173971 | P101: 0.07894736842 | Q101: 0.65
A102: 0.97 | B102: 0.35 | C102: 0.65 | D102: 0.03 | E102: 0.66 | F102: 0.6402 | G102: 0.119 | H102: 0.221 | I102: 0.0198 | J102: 0.843256059 | K102: 0.9177740864 | L102: 0.08222591362 | N102: 0.66 | O102: 0.843256059 | P102: 0.08222591362 | Q102: 0.66
A103: 0.97 | B103: 0.35 | C103: 0.65 | D103: 0.03 | E103: 0.67 | F103: 0.6499 | G103: 0.1155 | H103: 0.2145 | I103: 0.0201 | J103: 0.8490985106 | K103: 0.9143222506 | L103: 0.08567774936 | N103: 0.67 | O103: 0.8490985106 | P103: 0.08567774936 | Q103: 0.67
A104: 0.97 | B104: 0.35 | C104: 0.65 | D104: 0.03 | E104: 0.68 | F104: 0.6596 | G104: 0.112 | H104: 0.208 | I104: 0.0204 | J104: 0.854847071 | K104: 0.9106830123 | L104: 0.08931698774 | N104: 0.68 | O104: 0.854847071 | P104: 0.08931698774 | Q104: 0.68
A105: 0.97 | B105: 0.35 | C105: 0.65 | D105: 0.03 | E105: 0.69 | F105: 0.6693 | G105: 0.1085 | H105: 0.2015 | I105: 0.0207 | J105: 0.8605039856 | K105: 0.9068406841 | L105: 0.09315931593 | N105: 0.69 | O105: 0.8605039856 | P105: 0.09315931593 | Q105: 0.69
A106: 0.97 | B106: 0.35 | C106: 0.65 | D106: 0.03 | E106: 0.7 | F106: 0.679 | G106: 0.105 | H106: 0.195 | I106: 0.021 | J106: 0.8660714286 | K106: 0.9027777778 | L106: 0.09722222222 | N106: 0.7 | O106: 0.8660714286 | P106: 0.09722222222 | Q106: 0.7
A107: 0.97 | B107: 0.35 | C107: 0.65 | D107: 0.03 | E107: 0.705 | F107: 0.68385 | G107: 0.10325 | H107: 0.19175 | I107: 0.02115 | J107: 0.8688222589 | K107: 0.9006575857 | L107: 0.09934241428 | N107: 0.705 | O107: 0.8688222589 | P107: 0.09934241428 | Q107: 0.705
A108: 0.97 | B108: 0.35 | C108: 0.65 | D108: 0.03 | E108: 0.71 | F108: 0.6887 | G108: 0.1015 | H108: 0.1885 | I108: 0.0213 | J108: 0.8715515059 | K108: 0.8984747378 | L108: 0.1015252622 | N108: 0.71 | O108: 0.8715515059 | P108: 0.1015252622 | Q108: 0.71
A109: 0.97 | B109: 0.35 | C109: 0.65 | D109: 0.03 | E109: 0.715 | F109: 0.69355 | G109: 0.09975 | H109: 0.18525 | I109: 0.02145 | J109: 0.8742594227 | K109: 0.8962264151 | L109: 0.1037735849 | N109: 0.715 | O109: 0.8742594227 | P109: 0.1037735849 | Q109: 0.715
A110: 0.97 | B110: 0.35 | C110: 0.65 | D110: 0.03 | E110: 0.72 | F110: 0.6984 | G110: 0.098 | H110: 0.182 | I110: 0.0216 | J110: 0.8769462582 | K110: 0.8939096267 | L110: 0.1060903733 | N110: 0.72 | O110: 0.8769462582 | P110: 0.1060903733 | Q110: 0.72
A111: 0.97 | B111: 0.35 | C111: 0.65 | D111: 0.03 | E111: 0.725 | F111: 0.70325 | G111: 0.09625 | H111: 0.17875 | I111: 0.02175 | J111: 0.8796122577 | K111: 0.891521197 | L111: 0.108478803 | N111: 0.725 | O111: 0.8796122577 | P111: 0.108478803 | Q111: 0.725
A112: 0.97 | B112: 0.35 | C112: 0.65 | D112: 0.03 | E112: 0.73 | F112: 0.7081 | G112: 0.0945 | H112: 0.1755 | I112: 0.0219 | J112: 0.8822576626 | K112: 0.8890577508 | L112: 0.1109422492 | N112: 0.73 | O112: 0.8822576626 | P112: 0.1109422492 | Q112: 0.73
A113: 0.97 | B113: 0.35 | C113: 0.65 | D113: 0.03 | E113: 0.735 | F113: 0.71295 | G113: 0.09275 | H113: 0.17225 | I113: 0.02205 | J113: 0.8848827107 | K113: 0.8865156974 | L113: 0.1134843026 | N113: 0.735 | O113: 0.8848827107 | P113: 0.1134843026 | Q113: 0.735
A114: 0.97 | B114: 0.35 | C114: 0.65 | D114: 0.03 | E114: 0.74 | F114: 0.7178 | G114: 0.091 | H114: 0.169 | I114: 0.0222 | J114: 0.887487636 | K114: 0.8838912134 | L114: 0.1161087866 | N114: 0.74 | O114: 0.887487636 | P114: 0.1161087866 | Q114: 0.74
A115: 0.97 | B115: 0.35 | C115: 0.65 | D115: 0.03 | E115: 0.745 | F115: 0.72265 | G115: 0.08925 | H115: 0.16575 | I115: 0.02235 | J115: 0.890072669 | K115: 0.8811802233 | L115: 0.1188197767 | N115: 0.745 | O115: 0.890072669 | P115: 0.1188197767 | Q115: 0.745
A116: 0.97 | B116: 0.35 | C116: 0.65 | D116: 0.03 | E116: 0.75 | F116: 0.7275 | G116: 0.0875 | H116: 0.1625 | I116: 0.0225 | J116: 0.8926380368 | K116: 0.8783783784 | L116: 0.1216216216 | N116: 0.75 | O116: 0.8926380368 | P116: 0.1216216216 | Q116: 0.75
A117: 0.97 | B117: 0.35 | C117: 0.65 | D117: 0.03 | E117: 0.755 | F117: 0.73235 | G117: 0.08575 | H117: 0.15925 | I117: 0.02265 | J117: 0.8951839628 | K117: 0.8754810335 | L117: 0.1245189665 | N117: 0.755 | O117: 0.8951839628 | P117: 0.1245189665 | Q117: 0.755
A118: 0.97 | B118: 0.35 | C118: 0.65 | D118: 0.03 | E118: 0.76 | F118: 0.7372 | G118: 0.084 | H118: 0.156 | I118: 0.0228 | J118: 0.8977106673 | K118: 0.8724832215 | L118: 0.1275167785 | N118: 0.76 | O118: 0.8977106673 | P118: 0.1275167785 | Q118: 0.76
A119: 0.97 | B119: 0.35 | C119: 0.65 | D119: 0.03 | E119: 0.765 | F119: 0.74205 | G119: 0.08225 | H119: 0.15275 | I119: 0.02295 | J119: 0.9002183671 | K119: 0.8693796244 | L119: 0.1306203756 | N119: 0.765 | O119: 0.9002183671 | P119: 0.1306203756 | Q119: 0.765
A120: 0.97 | B120: 0.35 | C120: 0.65 | D120: 0.03 | E120: 0.77 | F120: 0.7469 | G120: 0.0805 | H120: 0.1495 | I120: 0.0231 | J120: 0.9027072758 | K120: 0.8661645423 | L120: 0.1338354577 | N120: 0.77 | O120: 0.9027072758 | P120: 0.1338354577 | Q120: 0.77
A121: 0.97 | B121: 0.35 | C121: 0.65 | D121: 0.03 | E121: 0.775 | F121: 0.75175 | G121: 0.07875 | H121: 0.14625 | I121: 0.02325 | J121: 0.9051776039 | K121: 0.8628318584 | L121: 0.1371681416 | N121: 0.775 | O121: 0.9051776039 | P121: 0.1371681416 | Q121: 0.775
A122: 0.97 | B122: 0.35 | C122: 0.65 | D122: 0.03 | E122: 0.78 | F122: 0.7566 | G122: 0.077 | H122: 0.143 | I122: 0.0234 | J122: 0.9076295585 | K122: 0.859375 | L122: 0.140625 | N122: 0.78 | O122: 0.9076295585 | P122: 0.140625 | Q122: 0.78
A123: 0.97 | B123: 0.35 | C123: 0.65 | D123: 0.03 | E123: 0.785 | F123: 0.76145 | G123: 0.07525 | H123: 0.13975 | I123: 0.02355 | J123: 0.9100633441 | K123: 0.8557868953 | L123: 0.1442131047 | N123: 0.785 | O123: 0.9100633441 | P123: 0.1442131047 | Q123: 0.785
A124: 0.97 | B124: 0.35 | C124: 0.65 | D124: 0.03 | E124: 0.79 | F124: 0.7663 | G124: 0.0735 | H124: 0.1365 | I124: 0.0237 | J124: 0.9124791617 | K124: 0.8520599251 | L124: 0.1479400749 | N124: 0.79 | O124: 0.9124791617 | P124: 0.1479400749 | Q124: 0.79
A125: 0.97 | B125: 0.35 | C125: 0.65 | D125: 0.03 | E125: 0.795 | F125: 0.77115 | G125: 0.07175 | H125: 0.13325 | I125: 0.02385 | J125: 0.9148772096 | K125: 0.8481858689 | L125: 0.1518141311 | N125: 0.795 | O125: 0.9148772096 | P125: 0.1518141311 | Q125: 0.795
A126: 0.97 | B126: 0.35 | C126: 0.65 | D126: 0.03 | E126: 0.8 | F126: 0.776 | G126: 0.07 | H126: 0.13 | I126: 0.024 | J126: 0.9172576832 | K126: 0.8441558442 | L126: 0.1558441558 | N126: 0.8 | O126: 0.9172576832 | P126: 0.1558441558 | Q126: 0.8
A127: 0.97 | B127: 0.35 | C127: 0.65 | D127: 0.03 | E127: 0.805 | F127: 0.78085 | G127: 0.06825 | H127: 0.12675 | I127: 0.02415 | J127: 0.9196207749 | K127: 0.8399602386 | L127: 0.1600397614 | N127: 0.805 | O127: 0.9196207749 | P127: 0.1600397614 | Q127: 0.805
A128: 0.97 | B128: 0.35 | C128: 0.65 | D128: 0.03 | E128: 0.81 | F128: 0.7857 | G128: 0.0665 | H128: 0.1235 | I128: 0.0243 | J128: 0.9219666745 | K128: 0.8355886333 | L128: 0.1644113667 | N128: 0.81 | O128: 0.9219666745 | P128: 0.1644113667 | Q128: 0.81
A129: 0.97 | B129: 0.35 | C129: 0.65 | D129: 0.03 | E129: 0.815 | F129: 0.79055 | G129: 0.06475 | H129: 0.12025 | I129: 0.02445 | J129: 0.9242955688 | K129: 0.8310297167 | L129: 0.1689702833 | N129: 0.815 | O129: 0.9242955688 | P129: 0.1689702833 | Q129: 0.815
A130: 0.97 | B130: 0.35 | C130: 0.65 | D130: 0.03 | E130: 0.82 | F130: 0.7954 | G130: 0.063 | H130: 0.117 | I130: 0.0246 | J130: 0.9266076421 | K130: 0.8262711864 | L130: 0.1737288136 | N130: 0.82 | O130: 0.9266076421 | P130: 0.1737288136 | Q130: 0.82
A131: 0.97 | B131: 0.35 | C131: 0.65 | D131: 0.03 | E131: 0.825 | F131: 0.80025 | G131: 0.06125 | H131: 0.11375 | I131: 0.02475 | J131: 0.928903076 | K131: 0.821299639 | L131: 0.178700361 | N131: 0.825 | O131: 0.928903076 | P131: 0.178700361 | Q131: 0.825
A132: 0.97 | B132: 0.35 | C132: 0.65 | D132: 0.03 | E132: 0.83 | F132: 0.8051 | G132: 0.0595 | H132: 0.1105 | I132: 0.0249 | J132: 0.9311820495 | K132: 0.8161004431 | L132: 0.1838995569 | N132: 0.83 | O132: 0.9311820495 | P132: 0.1838995569 | Q132: 0.83
A133: 0.97 | B133: 0.35 | C133: 0.65 | D133: 0.03 | E133: 0.835 | F133: 0.80995 | G133: 0.05775 | H133: 0.10725 | I133: 0.02505 | J133: 0.933444739 | K133: 0.8106575964 | L133: 0.1893424036 | N133: 0.835 | O133: 0.933444739 | P133: 0.1893424036 | Q133: 0.835
A134: 0.97 | B134: 0.35 | C134: 0.65 | D134: 0.03 | E134: 0.84 | F134: 0.8148 | G134: 0.056 | H134: 0.104 | I134: 0.0252 | J134: 0.9356913183 | K134: 0.8049535604 | L134: 0.1950464396 | N134: 0.84 | O134: 0.9356913183 | P134: 0.1950464396 | Q134: 0.84
A135: 0.97 | B135: 0.35 | C135: 0.65 | D135: 0.03 | E135: 0.845 | F135: 0.81965 | G135: 0.05425 | H135: 0.10075 | I135: 0.02535 | J135: 0.937921959 | K135: 0.7989690722 | L135: 0.2010309278 | N135: 0.845 | O135: 0.937921959 | P135: 0.2010309278 | Q135: 0.845
A136: 0.97 | B136: 0.35 | C136: 0.65 | D136: 0.03 | E136: 0.85 | F136: 0.8245 | G136: 0.0525 | H136: 0.0975 | I136: 0.0255 | J136: 0.9401368301 | K136: 0.7926829268 | L136: 0.2073170732 | N136: 0.85 | O136: 0.9401368301 | P136: 0.2073170732 | Q136: 0.85
A137: 0.97 | B137: 0.35 | C137: 0.65 | D137: 0.03 | E137: 0.855 | F137: 0.82935 | G137: 0.05075 | H137: 0.09425 | I137: 0.02565 | J137: 0.9423360982 | K137: 0.7860717264 | L137: 0.2139282736 | N137: 0.855 | O137: 0.9423360982 | P137: 0.2139282736 | Q137: 0.855
A138: 0.97 | B138: 0.35 | C138: 0.65 | D138: 0.03 | E138: 0.86 | F138: 0.8342 | G138: 0.049 | H138: 0.091 | I138: 0.0258 | J138: 0.9445199275 | K138: 0.779109589 | L138: 0.220890411 | N138: 0.86 | O138: 0.9445199275 | P138: 0.220890411 | Q138: 0.86
A139: 0.97 | B139: 0.35 | C139: 0.65 | D139: 0.03 | E139: 0.865 | F139: 0.83905 | G139: 0.04725 | H139: 0.08775 | I139: 0.02595 | J139: 0.9466884802 | K139: 0.77176781 | L139: =1-K139 -> 0.22823219 | N139: =E139 -> 0.865 | O139: =J139 -> 0.9466884802 | P139: =L139 -> 0.22823219 | Q139: =E139 -> 0.865
A140: =A139 -> 0.97 | B140: =1-C140 -> 0.35 | C140: =C139 -> 0.65 | D140: =1-A140 -> 0.03 | E140: 0.87 | F140: 0.8439 | G140: 0.0455 | H140: 0.0845 | I140: 0.0261 | J140: 0.9488419159 | K140: 0.7640144665 | L140: 0.2359855335 | N140: 0.87 | O140: 0.9488419159 | P140: 0.2359855335 | Q140: 0.87
A141: 0.97 | B141: 0.35 | C141: 0.65 | D141: 0.03 | E141: 0.875 | F141: =A141*E141 -> 0.84875 | G141: =B141*(1-E141) -> 0.04375 | H141: =C141*(1-E141) -> 0.08125 | I141: =D141*E141 -> 0.02625 | J141: =F141/(F141+G141) -> 0.9509803922 | K141: =H141/(H141+I141) -> 0.7558139535 | L141: 0.2441860465 | N141: 0.875 | O141: 0.9509803922 | P141: 0.2441860465 | Q141: 0.875
A142: 0.97 | B142: 0.35 | C142: 0.65 | D142: 0.03 | E142: 0.88 | F142: 0.8536 | G142: 0.042 | H142: 0.078 | I142: 0.0264 | J142: 0.9531040643 | K142: 0.7471264368 | L142: 0.2528735632 | N142: 0.88 | O142: 0.9531040643 | P142: 0.2528735632 | Q142: 0.88
A143: 0.97 | B143: 0.35 | C143: 0.65 | D143: 0.03 | E143: 0.885 | F143: 0.85845 | G143: 0.04025 | H143: 0.07475 | I143: 0.02655 | J143: 0.9552130856 | K143: 0.7379072063 | L143: 0.2620927937 | N143: 0.885 | O143: 0.9552130856 | P143: 0.2620927937 | Q143: 0.885
A144: 0.97 | B144: 0.35 | C144: 0.65 | D144: 0.03 | E144: 0.89 | F144: 0.8633 | G144: 0.0385 | H144: 0.0715 | I144: 0.0267 | J144: 0.957307607 | K144: 0.7281059063 | L144: 0.2718940937 | N144: 0.89 | O144: 0.957307607 | P144: 0.2718940937 | Q144: 0.89
A145: 0.97 | B145: 0.35 | C145: 0.65 | D145: 0.03 | E145: 0.895 | F145: 0.86815 | G145: 0.03675 | H145: 0.06825 | I145: 0.02685 | J145: 0.9593877777 | K145: 0.7176656151 | L145: 0.2823343849 | N145: 0.895 | O145: 0.9593877777 | P145: 0.2823343849 | Q145: 0.895
A146: 0.97 | B146: 0.35 | C146: 0.65 | D146: 0.03 | E146: 0.9 | F146: 0.873 | G146: 0.035 | H146: 0.065 | I146: 0.027 | J146: 0.9614537445 | K146: 0.7065217391 | L146: 0.2934782609 | N146: 0.9 | O146: 0.9614537445 | P146: 0.2934782609 | Q146: 0.9
A147: 0.97 | B147: 0.35 | C147: 0.65 | D147: 0.03 | E147: 0.905 | F147: 0.87785 | G147: 0.03325 | H147: 0.06175 | I147: 0.02715 | J147: 0.9635056525 | K147: 0.6946006749 | L147: 0.3053993251 | N147: 0.905 | O147: 0.9635056525 | P147: 0.3053993251 | Q147: 0.905
A148: 0.97 | B148: 0.35 | C148: 0.65 | D148: 0.03 | E148: 0.91 | F148: 0.8827 | G148: 0.0315 | H148: 0.0585 | I148: 0.0273 | J148: 0.9655436447 | K148: 0.6818181818 | L148: 0.3181818182 | N148: 0.91 | O148: 0.9655436447 | P148: 0.3181818182 | Q148: 0.91
A149: 0.97 | B149: 0.35 | C149: 0.65 | D149: 0.03 | E149: 0.915 | F149: 0.88755 | G149: 0.02975 | H149: 0.05525 | I149: 0.02745 | J149: 0.9675678622 | K149: 0.6680773881 | L149: 0.3319226119 | N149: 0.915 | O149: 0.9675678622 | P149: 0.3319226119 | Q149: 0.915
A150: 0.97 | B150: 0.35 | C150: 0.65 | D150: 0.03 | E150: 0.92 | F150: 0.8924 | G150: 0.028 | H150: 0.052 | I150: 0.0276 | J150: 0.9695784442 | K150: 0.6532663317 | L150: 0.3467336683 | N150: 0.92 | O150: 0.9695784442 | P150: 0.3467336683 | Q150: 0.92
A151: 0.97 | B151: 0.35 | C151: 0.65 | D151: 0.03 | E151: 0.925 | F151: 0.89725 | G151: 0.02625 | H151: 0.04875 | I151: 0.02775 | J151: 0.9715755279 | K151: 0.637254902 | L151: 0.362745098 | N151: 0.925 | O151: 0.9715755279 | P151: 0.362745098 | Q151: 0.925
A152: 0.97 | B152: 0.35 | C152: 0.65 | D152: 0.03 | E152: 0.93 | F152: 0.9021 | G152: 0.0245 | H152: 0.0455 | I152: 0.0279 | J152: 0.9735592489 | K152: 0.6198910082 | L152: 0.3801089918 | N152: 0.93 | O152: 0.9735592489 | P152: 0.3801089918 | Q152: 0.93
A153: 0.97 | B153: 0.35 | C153: 0.65 | D153: 0.03 | E153: 0.935 | F153: 0.90695 | G153: 0.02275 | H153: 0.04225 | I153: 0.02805 | J153: 0.9755297408 | K153: 0.6009957326 | L153: 0.3990042674 | N153: 0.935 | O153: 0.9755297408 | P153: 0.3990042674 | Q153: 0.935
A154: 0.97 | B154: 0.35 | C154: 0.65 | D154: 0.03 | E154: 0.94 | F154: 0.9118 | G154: 0.021 | H154: 0.039 | I154: 0.0282 | J154: 0.9774871355 | K154: 0.5803571429 | L154: 0.4196428571 | N154: =E154 -> 0.94 | O154: 0.9774871355 | P154: 0.4196428571 | Q154: 0.94
A155: 0.97 | B155: 0.35 | C155: 0.65 | D155: 0.03 | E155: 0.942 | F155: 0.91374 | G155: 0.0203 | H155: 0.0377 | I155: 0.02826 | J155: 0.9782664554 | K155: 0.5715585203 | L155: 0.4284414797 | N155: 0.942 | O155: 0.9782664554 | P155: 0.4284414797 | Q155: 0.942
A156: 0.97 | B156: 0.35 | C156: 0.65 | D156: 0.03 | E156: 0.944 | F156: 0.91568 | G156: 0.0196 | H156: 0.0364 | I156: 0.02832 | J156: 0.9790437088 | K156: 0.5624227441 | L156: 0.4375772559 | N156: 0.944 | O156: 0.9790437088 | P156: 0.4375772559 | Q156: 0.944
A157: 0.97 | B157: =1-C157 -> 0.35 | C157: 0.65 | D157: =1-A157 -> 0.03 | E157: 0.946 | F157: =A157*E157 -> 0.91762 | G157: =B157*(1-E157) -> 0.0189 | H157: =C157*(1-E157) -> 0.0351 | I157: =D157*E157 -> 0.02838 | J157: =F157/(F157+G157) -> 0.979818904 | K157: =H157/(H157+I157) -> 0.5529300567 | L157: =1-K157 -> 0.4470699433 | N157: 0.946 | O157: =J157 -> 0.979818904 | P157: =L157 -> 0.4470699433 | Q157: =E157 -> 0.946
A158: 0.97 | B158: 0.35 | C158: 0.65 | D158: 0.03 | E158: 0.948 | F158: 0.91956 | G158: 0.0182 | H158: 0.0338 | I158: 0.02844 | J158: 0.9805920491 | K158: 0.543059126 | L158: 0.456940874 | N158: =E158 -> 0.948 | O158: 0.9805920491 | P158: 0.456940874 | Q158: 0.948
A159: 0.97 | B159: 0.35 | C159: 0.65 | D159: 0.03 | E159: 0.95 | F159: 0.9215 | G159: 0.0175 | H159: 0.0325 | I159: 0.0285 | J159: 0.9813631523 | K159: 0.5327868852 | L159: 0.4672131148 | N159: 0.95 | O159: 0.9813631523 | P159: 0.4672131148 | Q159: 0.95
A160: 0.97 | B160: 0.35 | C160: 0.65 | D160: 0.03 | E160: 0.952 | F160: 0.92344 | G160: 0.0168 | H160: 0.0312 | I160: 0.02856 | J160: 0.9821322216 | K160: 0.5220883534 | L160: 0.4779116466 | N160: 0.952 | O160: 0.9821322216 | P160: 0.4779116466 | Q160: 0.952
A161: 0.97 | B161: 0.35 | C161: 0.65 | D161: 0.03 | E161: 0.954 | F161: 0.92538 | G161: 0.0161 | H161: 0.0299 | I161: 0.02862 | J161: 0.982899265 | K161: 0.510936432 | L161: 0.489063568 | N161: 0.954 | O161: 0.982899265 | P161: 0.489063568 | Q161: 0.954
A162: 0.97 | B162: 0.35 | C162: 0.65 | D162: 0.03 | E162: 0.956 | F162: 0.92732 | G162: 0.0154 | H162: 0.0286 | I162: 0.02868 | J162: 0.9836642906 | K162: 0.499301676 | L162: 0.500698324 | N162: 0.956 | O162: 0.9836642906 | P162: 0.500698324 | Q162: 0.956
A163: 0.97 | B163: 0.35 | C163: 0.65 | D163: 0.03 | E163: 0.958 | F163: 0.92926 | G163: 0.0147 | H163: 0.0273 | I163: 0.02874 | J163: 0.9844273062 | K163: 0.4871520343 | L163: 0.5128479657 | N163: 0.958 | O163: 0.9844273062 | P163: 0.5128479657 | Q163: 0.958
A164: 0.97 | B164: 0.35 | C164: 0.65 | D164: 0.03 | E164: 0.96 | F164: 0.9312 | G164: 0.014 | H164: 0.026 | I164: 0.0288 | J164: 0.9851883199 | K164: 0.4744525547 | L164: 0.5255474453 | N164: 0.96 | O164: 0.9851883199 | P164: 0.5255474453 | Q164: 0.96
A165: 0.97 | B165: 0.35 | C165: 0.65 | D165: 0.03 | E165: 0.962 | F165: 0.93314 | G165: 0.0133 | H165: 0.0247 | I165: 0.02886 | J165: 0.9859473395 | K165: 0.4611650485 | L165: 0.5388349515 | N165: 0.962 | O165: 0.9859473395 | P165: 0.5388349515 | Q165: 0.962
A166: 0.97 | B166: 0.35 | C166: 0.65 | D166: 0.03 | E166: 0.964 | F166: 0.93508 | G166: 0.0126 | H166: 0.0234 | I166: 0.02892 | J166: 0.9867043728 | K166: 0.4472477064 | L166: 0.5527522936 | N166: 0.964 | O166: 0.9867043728 | P166: 0.5527522936 | Q166: 0.964
A167: 0.97 | B167: 0.35 | C167: 0.65 | D167: 0.03 | E167: 0.966 | F167: 0.93702 | G167: 0.0119 | H167: 0.0221 | I167: 0.02898 | J167: 0.9874594276 | K167: 0.4326546594 | L167: 0.5673453406 | N167: 0.966 | O167: 0.9874594276 | P167: 0.5673453406 | Q167: 0.966
A168: 0.97 | B168: 0.35 | C168: 0.65 | D168: 0.03 | E168: 0.968 | F168: 0.93896 | G168: 0.0112 | H168: 0.0208 | I168: 0.02904 | J168: 0.9882125116 | K168: 0.4173354735 | L168: 0.5826645265 | N168: 0.968 | O168: 0.9882125116 | P168: 0.5826645265 | Q168: 0.968
A169: 0.97 | B169: 0.35 | C169: 0.65 | D169: 0.03 | E169: 0.97 | F169: 0.9409 | G169: 0.0105 | H169: 0.0195 | I169: 0.0291 | J169: 0.9889636325 | K169: 0.4012345679 | L169: 0.5987654321 | N169: 0.97 | O169: 0.9889636325 | P169: 0.5987654321 | Q169: 0.97
A170: 0.97 | B170: 0.35 | C170: 0.65 | D170: 0.03 | E170: 0.972 | F170: 0.94284 | G170: 0.0098 | H170: 0.0182 | I170: 0.02916 | J170: 0.9897127981 | K170: 0.3842905405 | L170: 0.6157094595 | N170: 0.972 | O170: 0.9897127981 | P170: 0.6157094595 | Q170: 0.972
A171: 0.97 | B171: 0.35 | C171: 0.65 | D171: 0.03 | E171: 0.974 | F171: 0.94478 | G171: 0.0091 | H171: 0.0169 | I171: 0.02922 | J171: 0.9904600159 | K171: 0.3664353859 | L171: 0.6335646141 | N171: 0.974 | O171: 0.9904600159 | P171: 0.6335646141 | Q171: 0.974
A172: 0.97 | B172: 0.35 | C172: 0.65 | D172: 0.03 | E172: 0.976 | F172: 0.94672 | G172: 0.0084 | H172: 0.0156 | I172: 0.02928 | J172: 0.9912052936 | K172: 0.3475935829 | L172: 0.6524064171 | N172: 0.976 | O172: 0.9912052936 | P172: 0.6524064171 | Q172: 0.976
A173: 0.97 | B173: 0.35 | C173: 0.65 | D173: 0.03 | E173: 0.978 | F173: 0.94866 | G173: 0.0077 | H173: 0.0143 | I173: 0.02934 | J173: 0.9919486386 | K173: 0.3276810266 | L173: 0.6723189734 | N173: 0.978 | O173: 0.9919486386 | P173: 0.6723189734 | Q173: 0.978
A174: 0.97 | B174: 0.35 | C174: 0.65 | D174: 0.03 | E174: 0.98 | F174: 0.9506 | G174: 0.007 | H174: 0.013 | I174: 0.0294 | J174: 0.9926900585 | K174: 0.3066037736 | L174: 0.6933962264 | N174: 0.98 | O174: 0.9926900585 | P174: 0.6933962264 | Q174: 0.98
A175: 0.97 | B175: 0.35 | C175: 0.65 | D175: 0.03 | E175: 0.982 | F175: 0.95254 | G175: 0.0063 | H175: 0.0117 | I175: 0.02946 | J175: 0.9934295607 | K175: 0.2842565598 | L175: 0.7157434402 | N175: 0.982 | O175: 0.9934295607 | P175: 0.7157434402 | Q175: 0.982
A176: 0.97 | B176: 0.35 | C176: 0.65 | D176: 0.03 | E176: 0.984 | F176: 0.95448 | G176: 0.0056 | H176: 0.0104 | I176: 0.02952 | J176: 0.9941671527 | K176: 0.2605210421 | L176: 0.7394789579 | N176: 0.984 | O176: 0.9941671527 | P176: 0.7394789579 | Q176: 0.984
A177: 0.97 | B177: 0.35 | C177: 0.65 | D177: 0.03 | E177: 0.986 | F177: 0.95642 | G177: 0.0049 | H177: 0.0091 | I177: 0.02958 | J177: 0.9949028419 | K177: 0.2352637022 | L177: 0.7647362978 | N177: 0.986 | O177: 0.9949028419 | P177: 0.7647362978 | Q177: 0.986
A178: 0.97 | B178: 0.35 | C178: 0.65 | D178: 0.03 | E178: 0.988 | F178: 0.95836 | G178: 0.0042 | H178: 0.0078 | I178: 0.02964 | J178: 0.9956366356 | K178: 0.2083333333 | L178: 0.7916666667 | N178: 0.988 | O178: 0.9956366356 | P178: 0.7916666667 | Q178: 0.988
A179: 0.97 | B179: 0.35 | C179: 0.65 | D179: 0.03 | E179: 0.99 | F179: 0.9603 | G179: 0.0035 | H179: 0.0065 | I179: 0.0297 | J179: 0.9963685412 | K179: 0.179558011 | L179: 0.820441989 | N179: 0.99 | O179: 0.9963685412 | P179: 0.820441989 | Q179: 0.99
A180: 0.97 | B180: 0.35 | C180: 0.65 | D180: 0.03 | E180: 0.992 | F180: 0.96224 | G180: 0.0028 | H180: 0.0052 | I180: 0.02976 | J180: 0.9970985659 | K180: 0.1487414188 | L180: 0.8512585812 | N180: 0.992 | O180: 0.9970985659 | P180: 0.8512585812 | Q180: 0.992
A181: 0.97 | B181: 0.35 | C181: 0.65 | D181: 0.03 | E181: 0.994 | F181: 0.96418 | G181: 0.0021 | H181: 0.0039 | I181: 0.02982 | J181: 0.9978267169 | K181: 0.115658363 | L181: 0.884341637 | N181: 0.994 | O181: 0.9978267169 | P181: 0.884341637 | Q181: 0.994
A182: 0.97 | B182: 0.35 | C182: 0.65 | D182: 0.03 | E182: 0.996 | F182: 0.96612 | G182: 0.0014 | H182: 0.0026 | I182: 0.02988 | J182: 0.9985530015 | K182: 0.08004926108 | L182: 0.9199507389 | N182: 0.996 | O182: 0.9985530015 | P182: 0.9199507389 | Q182: 0.996
A183: 0.97 | B183: 0.35 | C183: 0.65 | D183: 0.03 | E183: 0.998 | F183: 0.96806 | G183: 0.0007 | H183: 0.0013 | I183: 0.02994 | J183: 0.9992774268 | K183: 0.04161331626 | L183: 0.9583866837 | N183: 0.998 | O183: 0.9992774268 | P183: 0.9583866837 | Q183: 0.998
